fUST/lending_fUST_20250423
["ID","MTS","AMOUNT","RATE_DAILY","PERIOD"]
[358702418,1745388638346,-500.0,0.00020689,2]
[358702419,1745388638356,-500.0,0.00020689,2]
[358702420,1745388638366,-500.0,0.00020689,2]
[358702421,1745388638375,-500.0,0.00020689,2]
[358702422,1745388638388,-8.88527093,0.00020689,2]
[358702423,1745388638401,-491.11472907,0.00020689,2]
[358702424,1745388638410,-443.00496599,0.00020689,2]
[358702425,1745388638422,-56.99503401,0.00020689,2]
[358702426,1745388638432,-500.0,0.00020689,2]
[358702427,1745388638442,-500.0,0.00020689,2]
[358702428,1745388638453,-500.0,0.00020689,2]
[358702429,1745388638466,-500.0,0.00020689,2]
[358702430,1745388638475,-191.74615735,0.00020689,2]
[358702431,1745388638487,-308.25384265,0.00020689,2]
[358702432,1745388638496,-500.0,0.00020689,2]
[358702433,1745388638506,-500.0,0.00020689,2]
[358702434,1745388638515,-500.0,0.00020689,2]
[358702435,1745388638524,-500.0,0.00020689,2]
[358702436,1745388638534,-500.0,0.00020689,2]
[358702437,1745388638544,-500.0,0.00020689,2]
[358702438,1745388638553,-406.94587151,0.00020689,2]
[358702439,1745388638563,-500.0,0.00020689,2]
[358702440,1745388638572,-500.0,0.00020689,2]
[358702441,1745388638582,-500.0,0.00020689,2]
[358702442,1745388638592,-151.0,0.00020692,2]
[358702443,1745388638601,-65217.85044913,0.00020692,2]
[358702444,1745388638617,-1719.09465511,0.00020692,2]
[358702445,1745388638629,-608.92218227,0.00020692,2]
[358702446,1745388638641,-892.31656702,0.00020692,2]
[358702447,1745388638652,-407.076165,0.00020692,2]
[358702459,1745388640602,-684.48492881,0.00020692,2]
[358702460,1745388640615,-91505.47894585,0.00020692,2]
[358702485,1745388643156,-250.34611241,0.00020692,2]
[358702486,1745388643170,-190394.43878217,0.00020692,2]
[358702487,1745388643180,-338.2683292,0.00020697,2]
[358702488,1745388643191,-1000.0,0.00020697,2]
[358702489,1745388643201,-671.45411296,0.00020749,2]
[358702490,1745388643210,-151.0,0.00020799,2]
[358702491,1745388643220,-151.0,0.00020799,2]
[358702492,1745388643229,-151.0,0.00020799,2]
[358702493,1745388643239,-151.577564,0.00020799,2]
[358702494,1745388643248,-151.0,0.000208,2]
[358702495,1745388643258,-152.394923,0.000208,2]
[358702496,1745388643269,-151.0,0.000208,2]
[358702497,1745388643279,-263.010073,0.000208,2]
[358702498,1745388643289,-263.010073,0.000208,2]
[358702500,1745388643298,-151.0,0.000208,2]
[358702502,1745388643307,-492.611464,0.000208,2]
[358702504,1745388643319,-492.611464,0.000208,2]
[358702506,1745388643328,-151.0,0.000208,2]
[358702507,1745388643337,-151.0,0.000208,2]
[358702508,1745388643347,-151.0,0.000208,2]
[358702509,1745388643356,-151.0,0.000208,2]
[358702510,1745388643365,-166.949234,0.000208,2]
[358702511,1745388643374,-1014.564001,0.000208,2]
[358702512,1745388643384,-1014.564001,0.000208,2]
[358702513,1745388643393,-671.45411296,0.00020824,2]
[358702514,1745388643402,-409.968,0.000209,2]
[358702515,1745388643412,-671.45411296,0.000209,2]
[358702516,1745388643422,-271.7274765,0.00020973,2]
[358702517,1745388643432,-500.0,0.00020973,2]
[358702518,1745388643442,-556.02345618,0.00020973,2]
[358702519,1745388643453,-503.22546921,0.00020973,2]
[358702520,1745388643467,-429.40436232,0.00020973,2]
[358702521,1745388643477,-500.0,0.00020973,2]
[358702522,1745388643487,-501.55573453,0.00020973,2]
[358702523,1745388643498,-261.37425468,0.00020973,2]
[358702524,1745388643509,-501.97216085,0.00020973,2]
[358702525,1745388643518,-501.79551382,0.00020973,2]
[358702526,1745388643528,-500.0,0.00020973,2]
[358702527,1745388643538,-500.0,0.00020973,2]
[358702528,1745388643549,-286.75918432,0.00020973,2]
[358702529,1745388643559,-500.0,0.00020973,2]
[358702530,1745388643570,-500.0,0.00020973,2]
[358702531,1745388643580,-500.0,0.00020973,2]
[358702532,1745388643590,-500.0,0.00020973,2]
[358702533,1745388643600,-500.0,0.00020973,2]
[358702534,1745388643610,-500.0,0.00020973,2]
[358702535,1745388643619,-500.0,0.00020973,2]
[358702536,1745388643629,-500.0,0.00020973,2]
[358702537,1745388643638,-501.51815912,0.00020973,2]
[358702538,1745388643649,-500.0,0.00020973,2]
[358702539,1745388643659,-500.0,0.00020973,2]
[358702540,1745388643668,-500.0,0.00020973,2]
[358702541,1745388643678,-500.0,0.00020973,2]
[358702542,1745388643688,-500.0,0.00020973,2]
[358702543,1745388643697,-596.81181176,0.00020973,2]
[358702544,1745388643708,-500.80829576,0.00020973,2]
[358702545,1745388643717,-520.21138794,0.00020973,2]
[358702546,1745388643727,-500.0,0.00020973,2]
[358702547,1745388643737,-500.0,0.00020973,2]
[358702548,1745388643746,-500.0,0.00020973,2]
[358702549,1745388643756,-394.45282101,0.00020973,2]
[358702550,1745388643767,-370.06541903,0.00020973,2]
[358702551,1745388643776,-261.00328664,0.00020973,2]
[358702552,1745388643786,-262.97825617,0.00020973,2]
[358702553,1745388643796,-500.0,0.00020973,2]
[358702554,1745388643806,-500.0,0.00020973,2]
[358702555,1745388643816,-500.0,0.00020973,2]
[358702556,1745388643826,-500.41683027,0.00020973,2]
[358702557,1745388643836,-631.21834575,0.00020973,2]
[358702558,1745388643845,-500.0,0.00020973,2]
[358702559,1745388643855,-500.0,0.00020973,2]
[358702560,1745388643865,-500.99068703,0.00020973,2]
[358702561,1745388643875,-500.0,0.00020973,2]
[358702562,1745388643885,-500.0,0.00020973,2]
[358702563,1745388643895,-500.0,0.00020973,2]
[358702564,1745388643904,-500.0,0.00020973,2]
[358702565,1745388643913,-500.0,0.00020973,2]
[358702566,1745388643923,-151.0,0.00020973,2]
[358702567,1745388643933,-151.0,0.00020973,2]
[358702568,1745388643943,-151.0,0.00020973,2]
[358702569,1745388643953,-151.0,0.00020987,2]
[358702570,1745388643963,-151.0,0.00020987,2]
[358702571,1745388643973,-151.0,0.00020987,2]
[358702572,1745388643992,-151.0,0.00020987,2]
[358702573,1745388644011,-151.0,0.00020987,2]
[358702574,1745388644028,-207.4,0.00020987,2]
[358702575,1745388644042,-151.0,0.00020987,2]
[358702576,1745388644059,-361528.61144,0.00021,2]
[358702577,1745388644077,-151.0,0.00021,2]
[358702578,1745388644095,-151.0,0.00021,2]
[358702579,1745388644111,-151.0,0.00021,2]
[358702580,1745388644129,-151.0,0.00021,2]
[358702581,1745388644144,-151.0,0.00021,2]
[358702582,1745388644159,-151.0,0.00021,2]
[358702583,1745388644174,-151.0,0.00021,2]
[358702584,1745388644192,-151.0,0.00021,2]
[358702585,1745388644208,-151.0,0.00021,2]
[358702586,1745388644220,-151.0,0.00021,2]
[358702587,1745388644235,-156.965705,0.00021,2]
[358702588,1745388644249,-151.0,0.00021,2]
[358702589,1745388644266,-257.873624,0.00021,2]
[358702590,1745388644281,-257.873624,0.00021,2]
[358702591,1745388644299,-3109.86896,0.00021,2]
[358702592,1745388644316,-3109.86896,0.00021,2]
[358702593,1745388644333,-3572.13393283,0.00021,2]
[358702594,1745388644345,-151.0,0.00021,2]
[358702595,1745388644357,-151.0,0.00021,2]
[358702596,1745388644371,-151.0,0.00021,2]
[358702597,1745388644389,-263.010073,0.00021,2]
[358702598,1745388644401,-263.010073,0.00021,2]
[358702599,1745388644415,-151.0,0.00021,2]
[358702600,1745388644430,-492.611464,0.00021,2]
[358702601,1745388644445,-492.611464,0.00021,2]
[358702602,1745388644459,-151.0,0.00021,2]
[358702603,1745388644473,-151.0,0.00021,2]
[358702604,1745388644487,-151.0,0.00021,2]
[358702605,1745388644500,-151.0,0.00021,2]
[358702606,1745388644515,-151.0,0.00021,2]
[358702607,1745388644528,-151.0,0.00021,2]
[358702608,1745388644543,-151.0,0.00021,2]
[358702609,1745388644557,-587.555029,0.00021,2]
[358702610,1745388644572,-587.555029,0.00021,2]
[358702611,1745388644585,-1014.564001,0.00021,2]
[358702612,1745388644598,-1014.564001,0.00021,2]
[358702613,1745388644611,-151.0,0.00021,2]
[358702614,1745388644625,-151.0,0.00021,2]
[358702615,1745388644638,-151.0,0.00021,2]
[358702616,1745388644652,-152.00736912,0.00021,2]
[358702617,1745388644666,-151.0,0.00021,2]
[358702618,1745388644680,-151.0,0.00021,2]
[358702619,1745388644693,-151.0,0.00021,2]
[358702620,1745388644708,-151.0,0.00021,2]
[358702621,1745388644721,-151.0,0.00021,2]
[358702622,1745388644735,-151.0,0.00021,2]
[358702623,1745388644749,-267.34928,0.00021,2]
[358702624,1745388644763,-151.0,0.00021,2]
[358702625,1745388644777,-151.0,0.00021,2]
[358702626,1745388644790,-151.0,0.00021,2]
[358702627,1745388644805,-151.0,0.00021,2]
[358702628,1745388644819,-500.0,0.00021,2]
[358702629,1745388644832,-1156.035696,0.00021,2]
[358702630,1745388644845,-1156.035696,0.00021,2]
[358702631,1745388644860,-151.0,0.00021,2]
[358702632,1745388644874,-257.82019175,0.00021,2]
[358702633,1745388644889,-151.0,0.00021,2]
[358702634,1745388644903,-151.0,0.00021,2]
[358702635,1745388644917,-500.0,0.00021,2]
[358702636,1745388644931,-151.0,0.00021,2]
[358702637,1745388644945,-151.0,0.00021,2]
[358702638,1745388644960,-151.0,0.00021,2]
[358702639,1745388644974,-151.0,0.00021,2]
[358702640,1745388644988,-151.0,0.00021,2]
[358702641,1745388645003,-156.587,0.00021042,2]
[358702642,1745388645017,-2775.4,0.00021097,2]
[358702643,1745388645031,-2775.4,0.00021097,2]
[358702644,1745388645045,-2775.4,0.00021097,2]
[358702645,1745388645059,-2775.4,0.00021097,2]
[358702646,1745388645075,-2775.4,0.00021097,2]
[358702647,1745388645089,-2775.4,0.00021097,2]
[358702648,1745388645103,-2775.4,0.00021097,2]
[358702649,1745388645117,-2775.4,0.00021097,2]
[358702650,1745388645129,-2775.4,0.00021097,2]
[358702651,1745388645139,-2775.3,0.00021097,2]
[358702652,1745388645149,-151.0,0.00021097,2]
[358702653,1745388645159,-162.380719,0.00021097,2]
[358702654,1745388645169,-151.0,0.00021097,2]
[358702655,1745388645178,-218.954335,0.00021097,2]
[358702656,1745388645188,-151.0,0.000211,2]
[358702657,1745388645402,-151.0,0.000211,2]
[358702658,1745388645425,-153.0,0.000211,2]
[358702659,1745388645435,-3109.86896,0.000211,2]
[358702661,1745388645445,-3109.86896,0.000211,2]
[358702662,1745388645455,-153.0,0.000211,2]
[358702663,1745388645470,-224.168908,0.000211,2]
[358702664,1745388645479,-224.168908,0.000211,2]
[358702665,1745388645489,-153.0,0.000211,2]
[358702666,1745388645500,-151.0,0.000211,2]
[358702667,1745388645509,-153.0,0.000211,2]
[358702668,1745388645519,-153.0,0.000211,2]
[358702670,1745388645529,-151.0,0.000211,2]
[358702671,1745388645540,-151.0,0.000211,2]
[358702672,1745388645550,-151.0,0.000211,2]
[358702673,1745388645559,-153.0,0.000211,2]
[358702674,1745388645569,-263.010073,0.000211,2]
[358702675,1745388645579,-263.010073,0.000211,2]
[358702676,1745388645589,-151.326758,0.000211,2]
[358702677,1745388645598,-492.611464,0.000211,2]
[358702678,1745388645609,-492.611464,0.000211,2]
[358702679,1745388645618,-151.0,0.000211,2]
[358702680,1745388645628,-151.0,0.000211,2]
[358702681,1745388645638,-239.251785,0.000211,2]
[358702682,1745388645647,-239.251785,0.000211,2]
[358702683,1745388645657,-151.0,0.000211,2]
[358702684,1745388645666,-151.0,0.000211,2]
[358702686,1745388645676,-151.0,0.000211,2]
[358702687,1745388645686,-151.0,0.000211,2]
[358702688,1745388645695,-151.0,0.000211,2]
[358702689,1745388645705,-151.0,0.000211,2]
[358702690,1745388645715,-587.555029,0.000211,2]
[358702691,1745388645725,-587.555029,0.000211,2]
[358702692,1745388645734,-1014.564001,0.000211,2]
[358702693,1745388645744,-1014.564001,0.000211,2]
[358702694,1745388645754,-151.0,0.000211,2]
[358702695,1745388645764,-151.0,0.000211,2]
[358702696,1745388645774,-151.0,0.000211,2]
[358702697,1745388645784,-160.0,0.000211,3]
[358702698,1745388645793,-160.0,0.000211,3]
[358702699,1745388645803,-151.0,0.000211,2]
[358702700,1745388645812,-151.0,0.000211,2]
[358702701,1745388645823,-151.0,0.000211,2]
[358702702,1745388645833,-151.0,0.000211,2]
[358702703,1745388645843,-151.0,0.000211,2]
[358702704,1745388645853,-151.0,0.000211,2]
[358702705,1745388645864,-12573.79847128,0.000211,3]
[358702706,1745388645873,-6553.24692551,0.000211,3]
[358702707,1745388645883,-160.0,0.000211,3]
[358702708,1745388645893,-151.0,0.000211,2]
[358702709,1745388645903,-151.0,0.000211,2]
[358702710,1745388645913,-152.069983,0.000211,2]
[358702711,1745388645923,-1156.035696,0.000211,2]
[358702712,1745388645933,-1156.035696,0.000211,2]
[358702713,1745388645943,-729.16666667,0.000211,3]
[358702714,1745388645954,-151.0,0.000211,2]
[358702715,1745388645964,-151.0,0.000211,2]
[358702716,1745388645974,-168.3888056,0.00021152,2]
[358702717,1745388645983,-249.63897879,0.00021207,2]
[358702718,1745388645994,-151.0,0.00021247,2]
[358702719,1745388646004,-151.0,0.00021274,2]
[358702720,1745388646014,-151.0,0.00021274,2]
[358702721,1745388646023,-151.0,0.00021274,2]
[358702722,1745388646033,-500.0,0.00021274,2]
[358702723,1745388646043,-151.0,0.00021274,2]
[358702724,1745388646052,-500.0,0.00021274,2]
[358702725,1745388646061,-151.0,0.00021274,2]
[358702726,1745388646072,-151.0,0.00021274,2]
[358702727,1745388646082,-151.0,0.00021274,2]
[358702728,1745388646092,-3056.6,0.00021326,2]
[358702729,1745388646102,-151.0,0.00021326,2]
[358702730,1745388646112,-151.0,0.00021326,2]
[358702731,1745388646122,-151.0,0.00021521,2]
[358702732,1745388646132,-257.873624,0.00021521,2]
[358702733,1745388646141,-257.873624,0.00021521,2]
[358702734,1745388646150,-151.0,0.00021527,2]
[358702735,1745388646159,-151.0,0.00021527,2]
[358702736,1745388646169,-151.0,0.00021527,2]
[358702737,1745388646179,-1156.035696,0.00021527,2]
[358702738,1745388646189,-1156.035696,0.00021527,2]
[358702739,1745388646199,-151.0,0.00021535,2]
[358702740,1745388646209,-151.0,0.00021548,2]
[358702741,1745388646218,-151.0,0.00021548,2]
[358702742,1745388646227,-500.0,0.00021548,2]
[358702743,1745388646237,-198.0,0.00021548,2]
[358702744,1745388646247,-500.0,0.00021548,2]
[358702745,1745388646257,-151.0,0.00021548,2]
[358702747,1745388646266,-208.17177167,0.00021548,2]
[358702748,1745388646276,-151.0,0.00021548,2]
[358702749,1745388646286,-151.0,0.00021548,2]
[358702750,1745388646296,-151.0,0.00021548,2]
[358702751,1745388646307,-151.0,0.00021548,2]
[358702752,1745388646316,-151.0,0.00021548,2]
[358702753,1745388646327,-151.0,0.00021581,2]
[358702754,1745388646337,-151.0,0.00021581,2]
[358702755,1745388646347,-294.403389,0.00021581,2]
[358702756,1745388646357,-151.0,0.00021581,2]
[358702757,1745388646367,-587.555029,0.00021581,2]
[358702758,1745388646376,-587.555029,0.00021581,2]
[358702759,1745388646386,-285.667,0.00021711,15]
[358702760,1745388646395,-151.0,0.00021716,2]
[358702761,1745388646406,-6553.24692525,0.00021762,3]
[358702762,1745388646417,-739.32286718,0.000218,2]
[358702763,1745388646427,-151.37846818,0.000218,2]
[358702764,1745388646437,-151.0,0.000218,3]
[358702765,1745388646447,-151.0,0.00021816,2]
[358702766,1745388646457,-151.0,0.00021816,2]
[358702767,1745388646471,-151.0,0.00021816,2]
[358702768,1745388646481,-151.0,0.00021816,2]
[358702769,1745388646491,-151.0,0.00021816,2]
[358702770,1745388646502,-151.0,0.00021816,2]
[358702771,1745388646512,-151.0,0.00021816,2]
[358702772,1745388646523,-3279.72080539,0.00021816,2]
[358702773,1745388646533,-292.107687,0.00021816,2]
[358702774,1745388646544,-292.107687,0.00021816,2]
[358702775,1745388646554,-179.496163,0.00021816,2]
[358702776,1745388646564,-151.0,0.00021816,2]
[358702777,1745388646573,-151.0,0.00021816,2]
[358702778,1745388646583,-3109.86896,0.00021816,2]
[358702779,1745388646594,-3109.86896,0.00021816,2]
[358702780,1745388646604,-224.168908,0.00021816,2]
[358702781,1745388646614,-224.168908,0.00021816,2]
[358702782,1745388646624,-151.0,0.00021816,2]
[358702783,1745388646634,-258.73386,0.00021816,2]
[358702784,1745388646645,-263.010073,0.00021816,2]
[358702785,1745388646655,-263.010073,0.00021816,2]
[358702786,1745388646664,-492.611464,0.00021816,2]
[358702787,1745388646674,-492.611464,0.00021816,2]
[358702788,1745388646684,-151.0,0.00021816,2]
[358702789,1745388646694,-151.0,0.00021816,2]
[358702790,1745388646703,-239.251785,0.00021816,2]
[358702791,1745388646713,-239.251785,0.00021816,2]
[358702792,1745388646723,-151.0,0.00021816,2]
[358702793,1745388646733,-151.0,0.00021816,2]
[358702794,1745388646743,-151.0,0.00021816,2]
[358702795,1745388646753,-151.0,0.00021816,2]
[358702796,1745388646762,-151.0,0.00021816,2]
[358702797,1745388646773,-202.24145707,0.00021817,2]
[358702798,1745388646783,-166.0,0.00021817,2]
[358702799,1745388646793,-210.58998496,0.00021817,2]
[358702800,1745388646803,-166.0,0.00021817,2]
[358702801,1745388646813,-162.89753949,0.00021817,2]
[358702802,1745388646823,-155.0,0.00021817,2]
[358702803,1745388646834,-164.10935147,0.00021817,2]
[358702804,1745388646844,-359.0,0.00021817,2]
[358702805,1745388646854,-359.0,0.00021817,2]
[358702806,1745388646864,-359.0,0.00021817,2]
[358702807,1745388646874,-319.0,0.00021817,2]
[358702808,1745388646884,-359.0,0.00021817,2]
[358702809,1745388646894,-319.0,0.00021817,2]
[358702810,1745388646905,-359.0,0.00021817,2]
[358702811,1745388646915,-319.0,0.00021817,2]
[358702812,1745388646925,-359.0,0.00021817,2]
[358702813,1745388646935,-319.0,0.00021817,2]
[358702814,1745388646945,-359.0,0.00021817,2]
[358702815,1745388646955,-319.0,0.00021817,2]
[358702816,1745388646965,-359.0,0.00021817,2]
[358702817,1745388646976,-319.0,0.00021817,2]
[358702818,1745388646986,-359.0,0.00021817,2]
[358702819,1745388646995,-319.0,0.00021817,2]
[358702820,1745388647006,-359.0,0.00021817,2]
[358702821,1745388647015,-319.0,0.00021817,2]
[358702822,1745388647026,-359.0,0.00021817,2]
[358702823,1745388647036,-319.0,0.00021817,2]
[358702824,1745388647046,-359.0,0.00021817,2]
[358702825,1745388647056,-319.0,0.00021817,2]
[358702826,1745388647066,-359.0,0.00021817,2]
[358702827,1745388647077,-319.0,0.00021817,2]
[358702828,1745388647087,-319.0,0.00021817,2]
[358702829,1745388647097,-359.0,0.00021817,2]
[358702830,1745388647107,-319.0,0.00021817,2]
[358702831,1745388647116,-359.0,0.00021817,2]
[358702832,1745388647126,-319.0,0.00021817,2]
[358702833,1745388647136,-359.0,0.00021817,2]
[358702834,1745388647146,-319.0,0.00021817,2]
[358702835,1745388647156,-359.0,0.00021817,2]
[358702836,1745388647166,-359.0,0.00021817,2]
[358702837,1745388647176,-359.0,0.00021817,2]
[358702838,1745388647186,-319.0,0.00021817,2]
[358702839,1745388647196,-201.40382485,0.00021817,2]
[358702840,1745388647206,-319.0,0.00021817,2]
[358702841,1745388647217,-319.0,0.00021817,2]
[358702842,1745388647227,-234.34367566,0.00021817,2]
[358702843,1745388647236,-201.99105395,0.00021822,2]
[358702844,1745388647246,-203.825679,0.00021822,2]
[358702845,1745388647256,-500.0,0.00021822,2]
[358702846,1745388647266,-500.0,0.00021822,2]
[358702847,1745388647276,-155.37826328,0.00021822,2]
[358702848,1745388647286,-151.0,0.00021822,2]
[358702849,1745388647296,-235.795801,0.00021822,2]
[358702850,1745388647306,-151.0,0.000219,2]
[358702851,1745388647316,-151.0,0.000219,2]
[358702852,1745388647326,-151.0,0.000219,2]
[358702853,1745388647336,-151.0,0.000219,2]
[358702854,1745388647346,-151.0,0.000219,2]
[358702855,1745388647356,-587.555029,0.000219,2]
[358702856,1745388647366,-587.555029,0.000219,2]
[358702857,1745388647376,-151.0,0.000219,2]
[358702858,1745388647386,-151.0,0.000219,2]
[358702859,1745388647397,-151.0,0.000219,2]
[358702860,1745388647406,-151.0,0.000219,2]
[358702861,1745388647415,-633.0,0.000219,2]
[358702862,1745388647425,-1156.035696,0.000219,2]
[358702863,1745388647435,-1156.035696,0.000219,2]
[358702864,1745388647445,-151.0,0.00021902,2]
[358702865,1745388647454,-151.0,0.00021902,2]
[358702866,1745388647467,-151.0,0.00021902,2]
[358702867,1745388647477,-257.873624,0.00021902,2]
[358702868,1745388647487,-257.873624,0.00021902,2]
[358702869,1745388647498,-224.168908,0.00021902,2]
[358702870,1745388647509,-224.168908,0.00021902,2]
[358702871,1745388647522,-151.0,0.00021902,2]
[358702872,1745388647532,-263.010073,0.00021902,2]
[358702873,1745388647544,-263.010073,0.00021902,2]
[358702874,1745388647555,-492.611464,0.00021902,2]
[358702875,1745388647565,-492.611464,0.00021902,2]
[358702876,1745388647575,-151.0,0.00021902,2]
[358702877,1745388647585,-151.0,0.00021902,2]
[358702878,1745388647594,-239.251785,0.00021902,2]
[358702879,1745388647604,-239.251785,0.00021902,2]
[358702880,1745388647613,-151.0,0.00021902,2]
[358702881,1745388647623,-151.0,0.00021902,2]
[358702882,1745388647633,-151.0,0.00021902,2]
[358702883,1745388647642,-151.0,0.00021902,2]
[358702884,1745388647653,-151.0,0.00021902,2]
[358702885,1745388647664,-160.0,0.00021903,2]
[358702886,1745388647674,-160.0,0.00021903,2]
[358702887,1745388647684,-160.0,0.00021903,2]
[358702888,1745388647693,-160.0,0.00021903,2]
[358702889,1745388647703,-12573.79847128,0.00021903,2]
[358702890,1745388647713,-420.82143104,0.00021903,2]
[358702891,1745388647723,-729.16666667,0.00021903,2]
[358702892,1745388647734,-160.0,0.00021903,2]
[358702893,1745388647744,-160.0,0.00021903,2]
[358702894,1745388647754,-177.086735,0.0002191,2]
[358702895,1745388647764,-151.0,0.0002191,2]
[358702896,1745388647774,-151.0,0.0002191,2]
[358702897,1745388647784,-151.0,0.0002191,2]
[358702898,1745388647795,-151.0,0.0002191,2]
[358702899,1745388647805,-273.563956,0.0002191,2]
[358702900,1745388647814,-151.0,0.0002191,2]
[358702901,1745388647824,-151.0,0.0002191,2]
[358702902,1745388647834,-292.107687,0.0002191,2]
[358702903,1745388647844,-292.107687,0.0002191,2]
[358702904,1745388647854,-151.0,0.0002191,2]
[358702905,1745388647864,-151.0,0.0002191,2]
[358702906,1745388647874,-8396.55,0.00021917,2]
[358702907,1745388647884,-151.0,0.00021917,2]
[358702908,1745388647894,-157.507112,0.00021917,2]
[358702909,1745388647904,-151.0,0.00021917,2]
[358702910,1745388647914,-151.0,0.00021917,2]
[358702911,1745388647924,-151.0,0.00021917,2]
[358702912,1745388647935,-151.0,0.00021917,2]
[358702913,1745388647944,-151.0,0.00021917,2]
[358702914,1745388647954,-151.0,0.00021917,2]
[358702915,1745388647964,-151.0,0.00021917,2]
[358702916,1745388647974,-151.0,0.00021917,2]
[358702917,1745388647983,-151.0,0.00021917,2]
[358702918,1745388647993,-151.0,0.00021917,2]
[358702919,1745388648003,-151.0,0.00021917,2]
[358702920,1745388648014,-151.0,0.00021917,2]
[358702921,1745388648023,-151.0,0.00021917,2]
[358702922,1745388648180,-151.0,0.00021917,2]
[358702923,1745388648191,-151.0,0.00021917,2]
[358702924,1745388648202,-151.0,0.00021917,2]
[358702925,1745388648212,-151.0,0.00021917,2]
[358702926,1745388648222,-151.0,0.00021917,2]
[358702927,1745388648232,-151.0,0.00021917,2]
[358702928,1745388648242,-151.0,0.00021917,2]
[358702929,1745388648251,-151.0,0.00021917,2]
[358702930,1745388648261,-151.0,0.00021917,2]
[358702931,1745388648271,-151.0,0.00021917,2]
[358702932,1745388648280,-151.0,0.00021917,2]
[358702933,1745388648290,-151.0,0.00021917,2]
[358702934,1745388648299,-157.038152,0.00021917,2]
[358702935,1745388648310,-151.0,0.00021917,2]
[358702936,1745388648320,-151.0,0.00021917,2]
[358702937,1745388648330,-151.0,0.00021917,2]
[358702938,1745388648340,-185.080489,0.00021917,2]
[358702939,1745388648350,-151.0,0.00021917,2]
[358702940,1745388648360,-151.0,0.00021917,2]
[358702941,1745388648369,-151.0,0.00021917,2]
[358702942,1745388648379,-151.0,0.00021917,2]
[358702943,1745388648389,-151.0,0.00021917,2]
[358702944,1745388648399,-151.0,0.00021917,2]
[358702945,1745388648409,-220.062228,0.00021917,2]
[358702946,1745388648419,-151.0,0.00021917,2]
[358702947,1745388648429,-151.0,0.00021917,2]
[358702948,1745388648440,-168.418237,0.00021917,2]
[358702949,1745388648451,-151.0,0.00021917,2]
[358702950,1745388648472,-151.0,0.00021917,2]
[358702951,1745388648485,-151.0,0.00021917,2]
[358702952,1745388648495,-151.0,0.00021917,2]
[358702953,1745388648506,-151.0,0.00021917,2]
[358702954,1745388648516,-151.0,0.00021917,2]
[358702955,1745388648526,-151.0,0.00021917,2]
[358702956,1745388648535,-151.0,0.00021917,2]
[358702957,1745388648546,-285.37052,0.00021917,2]
[358702958,1745388648556,-151.0,0.00021917,2]
[358702959,1745388648565,-151.0,0.00021917,2]
[358702960,1745388648575,-180.967815,0.00021917,2]